bitfinex/quotes_SOLUSD_20250306
["timestamp","ask_amount","ask_price","bid_price","bid_amount"]
[1741257262015,80.8,152.29,152.27,0.033]
[1741257262219,87.3664,152.29,152.27,0.033]
[1741257263299,130.51573113,152.29,152.27,0.033]
[1741257263914,87.3664,152.29,152.27,0.033]
[1741257264136,80.8,152.29,152.27,43.18233113]
[1741257264314,6.566,152.3,152.28,0.14216157]
[1741257265030,43.14933113,152.29,152.27,0.033]
[1741257265723,80.8,152.28,152.27,0.033]
[1741257266305,87.3668,152.28,152.27,0.033]
[1741257267398,80.8,152.28,152.27,0.033]
[1741257269030,49.31713113,152.28,152.27,0.033]
[1741257270424,55.88393113,152.28,152.27,0.033]
[1741257270623,55.88393113,152.28,152.27,0.0001]
[1741257270824,72.30103113,152.28,152.25,0.0001]
[1741257271029,86.29866226,152.26,152.25,0.0001]
[1741257271235,0.28432314,152.24,152.16,312.0]
[1741257271432,43.14933113,152.18,152.14,0.033]
[1741257271614,43.14933113,152.19,152.14,0.033]
[1741257272005,43.14933113,152.2,152.14,43.3244927]
[1741257272220,123.94933113,152.23,152.17,43.2914927]
[1741257272536,43.14933113,152.24,152.19,43.2914927]
[1741257272743,49.71753113,152.25,152.19,43.2914927]
[1741257273042,43.14933113,152.24,152.19,43.2914927]
[1741257273410,6.5682,152.25,152.18,6.5709]
[1741257273411,43.14933113,152.23,152.18,0.14216157]
[1741257273617,43.14933113,152.22,152.18,0.14216157]
[1741257274216,43.14933113,152.23,152.17,43.2914927]
[1741257274413,43.14933113,152.23,152.19,0.14216157]
[1741257275310,49.71833113,152.23,152.19,0.14216157]
[1741257275734,43.14933113,152.22,152.19,0.14216157]
[1741257276146,43.14933113,152.23,152.19,0.14216157]
[1741257276437,87.3675,152.27,152.19,13.15786157]
[1741257276638,80.8,152.27,152.23,0.14216157]
[1741257277023,80.8,152.27,152.23,26.70346643]
[1741257277425,87.3674,152.27,152.23,0.14216157]
[1741257278443,33.12980486,152.24,152.19,6.4451]
[1741257278944,33.12980486,152.24,152.2,0.14216157]
[1741257279144,26.56130486,152.23,152.2,0.14216157]
[1741257279455,26.56130486,152.22,152.17,0.14216157]
[1741257279749,26.56130486,152.22,152.17,312.14216157]
[1741257280040,26.56130486,152.21,152.17,312.14216157]
[1741257280247,26.56130486,152.21,152.17,312.0]
[1741257280545,6.5703,152.2,152.18,0.14216157]
[1741257280946,26.56130486,152.21,152.18,0.14216157]
[1741257281161,26.56130486,152.25,152.2,0.14216157]
[1741257281448,80.8,152.27,152.22,0.14216157]
[1741257281449,80.8,152.26,152.22,0.14216157]
[1741257281827,80.8,152.26,152.22,26.70346643]
[1741257282243,80.8,152.26,152.22,0.14216157]
[1741257282646,80.8,152.26,152.22,33.27286643]
[1741257282851,80.8,152.26,152.22,26.70346643]
[1741257283038,80.8,152.26,152.22,33.27286643]
[1741257283349,6.5664,152.29,152.25,0.14216157]
[1741257283559,80.8,152.3,152.25,26.70346643]
[1741257283735,80.8,152.3,152.27,26.70346643]
[1741257283931,26.56130486,152.34,152.29,0.14216157]
[1741257284254,6.5638,152.35,152.31,0.14216157]
[1741257284426,26.56130486,152.34,152.31,0.14216157]
[1741257284625,26.56130486,152.34,152.29,0.14216157]
[1741257284848,6.5646,152.33,152.29,0.14216157]
[1741257285445,6.5646,152.33,152.27,46.56130486]
[1741257285446,33.12590486,152.33,152.27,46.56130486]
[1741257285647,33.12590486,152.33,152.28,0.14216157]
[1741257286028,6.5646,152.33,152.28,26.70346643]
[1741257286247,33.12590486,152.33,152.28,0.14216157]
[1741257286559,6.5641,152.35,152.33,0.14216157]
[1741257286739,33.12410486,152.38,152.33,0.14216157]
[1741257287246,26.56130486,152.36,152.31,0.14216157]
[1741257287651,22.9691,152.38,152.31,312.14216157]
[1741257287953,26.56130486,152.36,152.31,312.14216157]
[1741257288958,6.5638,152.35,152.31,312.14216157]
[1741257289463,49.53460486,152.35,152.31,312.14216157]
[1741257289658,26.56130486,152.33,152.29,0.14216157]
[1741257289957,26.56130486,152.32,152.29,0.14216157]
[1741257290145,26.56130486,152.31,152.25,26.59430486]
[1741257290453,26.56130486,152.27,152.25,0.033]
[1741257291074,26.56130486,152.26,152.25,0.033]
[1741257291668,26.56130486,152.26,152.18,1.6563]
[1741257291874,26.56130486,152.22,152.16,32.66730486]
[1741257292059,26.56130486,152.21,152.16,6.106]
[1741257292255,26.56130486,152.2,152.16,6.106]
[1741257292549,26.56130486,152.21,152.16,318.106]
[1741257293183,6.5703,152.2,152.17,0.14216157]
[1741257293548,6.5689,152.24,152.17,26.56130486]
[1741257293786,26.56130486,152.24,152.19,0.14216157]
[1741257294988,82.3947,152.37,152.24,0.14216157]
[1741257295273,26.56130486,152.33,152.28,0.14216157]
[1741257295570,26.56130486,152.32,152.28,0.14216157]
[1741257295775,26.56130486,152.31,152.26,0.14216157]
[1741257295976,26.56130486,152.29,152.26,0.14216157]
[1741257296278,26.56130486,152.29,152.26,312.14216157]
[1741257296650,80.8,152.34,152.26,312.14216157]
[1741257296651,26.56130486,152.3,152.26,312.14216157]
[1741257296949,26.56130486,152.33,152.27,0.14216157]
[1741257297147,26.56130486,152.33,152.27,26.70346643]
[1741257297348,26.56130486,152.32,152.27,0.14216157]
[1741257297548,26.56130486,152.33,152.27,0.14216157]
[1741257298569,26.56130486,152.32,152.27,0.14216157]
[1741257299995,26.56130486,152.34,152.32,0.14216157]
[1741257300297,26.56130486,152.33,152.32,0.14216157]
[1741257300774,26.56130486,152.34,152.29,0.14216157]
[1741257300987,26.56130486,152.35,152.3,0.14216157]
[1741257301294,26.56130486,152.32,152.3,0.14216157]
[1741257301595,26.56130486,152.31,152.27,0.14216157]
[1741257301898,26.56130486,152.32,152.27,0.14216157]
[1741257302475,26.56130486,152.3,152.24,26.56130486]
[1741257302972,26.56130486,152.29,152.25,0.14216157]
[1741257303168,26.56130486,152.28,152.25,0.14216157]
[1741257303363,26.56130486,152.29,152.28,0.14216157]
[1741257303974,26.56130486,152.29,152.25,0.14216157]
[1741257304173,26.56130486,152.3,152.25,0.14216157]
[1741257304577,80.8,152.33,152.27,26.56130486]
[1741257304770,80.8,152.33,152.28,26.70346643]
[1741257305212,26.56130486,152.31,152.25,26.70346643]
[1741257305500,26.56130486,152.29,152.25,0.14216157]
[1741257306377,26.56130486,152.3,152.25,0.14216157]
[1741257306705,26.56130486,152.31,152.25,33.27146643]
[1741257306895,26.56130486,152.31,152.29,0.14216157]
[1741257307393,26.56130486,152.3,152.24,20.0]
[1741257307593,26.56130486,152.29,152.25,0.14216157]
[1741257308101,80.8,152.31,152.25,0.14216157]
[1741257308102,26.56130486,152.3,152.25,0.14216157]
[1741257309597,87.3655,152.31,152.27,0.14216157]
[1741257309775,113.92680486,152.31,152.27,0.14216157]
[1741257310078,26.56130486,152.3,152.24,46.56130486]
[1741257310284,26.56130486,152.29,152.28,0.14216157]
[1741257310886,26.56130486,152.29,152.25,0.14216157]
[1741257311299,26.56130486,152.26,152.2,6.6333]
[1741257311479,26.56130486,152.23,152.17,26.56130486]
[1741257311803,26.56130486,152.22,152.16,32.70290486]
[1741257312012,33.13110486,152.21,152.16,6.1416]
[1741257312298,26.56130486,152.18,152.14,0.033]
[1741257312491,80.8,152.2,152.16,0.14216157]
[1741257312698,80.8,152.2,152.15,26.56130486]
[1741257312999,26.56130486,152.18,152.14,0.033]
[1741257313203,26.56130486,152.15,152.14,0.033]
[1741257313911,33.13370486,152.15,152.14,0.033]
[1741257315910,26.56130486,152.15,152.14,0.033]
[1741257316685,6.5703,152.2,152.14,0.033]
[1741257316991,26.56130486,152.15,152.14,312.17516157]
[1741257317921,26.56130486,152.15,152.14,0.17516157]
[1741257318208,33.13370486,152.15,152.14,0.033]
[1741257319014,26.56130486,152.15,152.14,0.033]
[1741257319176,33.13370486,152.15,152.14,0.033]
[1741257320197,6.71196157,152.21,152.14,0.033]
[1741257320386,26.56130486,152.16,152.14,0.033]
[1741257320706,26.56130486,152.15,152.14,0.033]
[1741257321911,0.28432314,152.14,152.12,0.033]
[1741257322097,26.56130486,152.11,152.1,0.033]
[1741257322300,26.56130486,152.1,152.01,6.5784]
[1741257322501,107.36130486,152.1,152.03,26.56130486]
[1741257322796,107.36130486,152.1,152.04,0.14216157]
[1741257323002,26.56130486,152.1,152.01,26.56130486]
[1741257323310,26.56130486,152.1,151.99,6.5669]
[1741257323311,0.28432314,152.09,151.99,6.5669]
[1741257323503,26.56130486,152.03,151.99,6.5669]
[1741257323891,26.56130486,152.01,151.98,0.033]
[1741257324095,26.56130486,152.01,151.99,312.0]
[1741257324096,33.14000486,152.01,151.99,312.0]
[1741257324415,26.56130486,152.0,151.99,312.0]
[1741257324913,26.56130486,152.0,151.98,0.033]
[1741257325120,26.56130486,151.99,151.98,0.033]
[1741257325821,20.0,151.96,151.95,0.033]
[1741257325998,46.56130486,151.96,151.95,0.033]
[1741257326194,26.56130486,151.96,151.95,0.033]
[1741257327098,26.56130486,151.99,151.95,0.033]
[1741257327417,26.56130486,152.0,151.95,0.033]
[1741257327720,26.56130486,151.99,151.95,0.033]
[1741257327889,26.56130486,151.99,151.96,312.0]
[1741257328095,26.56130486,152.0,151.97,0.14216157]
[1741257328512,26.56130486,152.0,151.95,0.17516157]
[1741257329123,26.56130486,152.0,151.95,6.75606157]
[1741257329626,26.56130486,152.0,151.95,0.17516157]
[1741257329832,26.56130486,151.99,151.95,0.17516157]
[1741257330129,26.56130486,151.97,151.95,0.033]
[1741257330632,26.56130486,151.99,151.96,0.14216157]
[1741257330837,26.56130486,152.0,151.96,0.14216157]
[1741257331009,26.56130486,151.99,151.96,0.14216157]
[1741257331210,80.8,152.01,151.95,0.17516157]
[1741257331211,26.56130486,151.98,151.95,0.17516157]
[1741257331517,26.56130486,151.98,151.96,312.0]
[1741257331902,26.56130486,151.97,151.96,312.0]
[1741257332134,26.56130486,151.97,151.95,0.033]
[1741257332310,26.56130486,151.96,151.95,0.033]
[1741257332518,80.8,152.0,151.95,0.033]
[1741257332705,26.56130486,151.98,151.95,0.033]
[1741257332906,26.56130486,151.99,151.95,0.033]
[1741257334119,26.56130486,152.0,151.95,0.033]
[1741257334317,80.8,152.04,151.96,0.14216157]
[1741257334510,26.56130486,152.01,151.96,0.14216157]
[1741257334708,80.8,152.03,151.95,6.75616157]
[1741257334709,26.56130486,152.0,151.95,6.75616157]
[1741257334903,80.8,152.03,151.95,33.31746643]
[1741257335130,26.56130486,152.01,151.98,0.14216157]
[1741257335309,80.8,152.03,151.98,0.14216157]
[1741257335310,26.56130486,152.0,151.98,0.14216157]
[1741257335512,26.56130486,152.01,151.98,0.14216157]
[1741257335718,80.8,152.03,151.99,0.14216157]
[1741257336033,26.56130486,152.04,151.99,0.14216157]
[1741257336627,26.56130486,152.03,151.99,0.14216157]
[1741257337023,26.56130486,152.03,151.98,0.14216157]
[1741257337214,26.56130486,152.0,151.98,0.14216157]
[1741257337430,26.56130486,152.01,151.98,0.14216157]
[1741257337739,26.56130486,152.01,151.96,0.14216157]
[1741257338232,107.36130486,152.04,151.99,0.14216157]
[1741257338408,107.36130486,152.04,151.99,6.72146157]
[1741257338610,107.36130486,152.04,151.99,318.72136157]
[1741257338814,80.8,152.04,151.99,345.28266643]
[1741257339235,26.56130486,152.06,152.01,0.14216157]
[1741257340309,0.03,152.04,152.0,0.14216157]
[1741257340612,26.59130486,152.04,152.0,0.14216157]
[1741257340812,0.03,152.04,152.0,0.14216157]
[1741257341241,26.56130486,152.03,151.99,0.14216157]
[1741257341537,0.03,152.04,151.99,0.14216157]
[1741257341538,26.59130486,152.04,151.99,0.14216157]
[1741257342140,0.03,152.04,152.02,0.14216157]
[1741257342835,33.13760486,152.06,152.01,0.14216157]
[1741257344832,26.56130486,152.06,152.01,0.14216157]
[1741257345013,26.56130486,152.09,152.04,0.14216157]
[1741257345414,26.56130486,152.1,152.04,26.70346643]
[1741257345613,26.56130486,152.1,152.06,0.14216157]
[1741257346048,33.13490486,152.13,152.08,0.14216157]
[1741257346416,26.56130486,152.09,152.08,0.14216157]
[1741257346745,26.56130486,152.09,152.06,0.14216157]
[1741257347930,33.13670486,152.08,152.06,0.14216157]
[1741257348119,26.56130486,152.07,152.04,0.14216157]
[1741257348311,26.56130486,152.05,152.01,6.4321]
[1741257348513,26.56130486,152.02,151.96,114.32640486]
[1741257348715,26.56130486,152.01,151.96,6.4651]
[1741257348938,26.56130486,152.01,151.97,0.14216157]
[1741257349843,6.5789,152.0,151.97,0.14216157]
[1741257350048,6.5789,152.0,151.96,345.02640486]
[1741257350345,33.13990486,152.01,151.97,0.14216157]
[1741257350544,26.56130486,152.02,151.97,0.14216157]
[1741257351240,26.56130486,152.01,151.97,0.14216157]
[1741257352033,6.5789,152.0,151.97,0.14216157]
[1741257352233,33.14020486,152.0,151.97,0.14216157]
[1741257352531,26.56130486,151.99,151.96,0.033]
[1741257353642,26.56130486,151.97,151.96,0.033]
[1741257354443,113.94100486,151.99,151.96,0.033]
[1741257355152,26.56130486,151.98,151.96,0.033]
[1741257355527,113.94100486,151.99,151.96,0.033]
[1741257356821,26.56130486,151.99,151.96,0.033]
[1741257357133,26.56130486,152.0,151.96,0.17516157]
[1741257357318,33.13980486,152.01,151.96,26.73646643]
[1741257357524,26.56130486,152.01,151.96,26.73646643]
[1741257358547,26.56130486,151.99,151.96,0.033]
[1741257358725,33.14070486,151.99,151.96,0.033]
[1741257358921,26.56130486,151.99,151.96,0.033]
[1741257359235,26.56130486,152.01,151.96,0.033]
[1741257359940,26.56130486,152.01,151.99,0.14216157]
[1741257360341,26.56130486,152.01,151.96,0.17516157]
[1741257361152,26.56130486,152.01,151.96,6.75576157]
[1741257361454,26.56130486,152.05,152.0,0.14216157]
[1741257362456,26.56130486,152.04,151.99,0.14216157]
[1741257362670,26.56130486,152.02,151.99,0.14216157]
[1741257362828,26.56130486,152.01,151.99,0.14216157]
[1741257363033,26.56130486,152.0,151.96,0.17516157]
[1741257363333,26.56130486,152.03,152.0,0.14216157]
[1741257363540,26.56130486,152.03,151.98,0.14216157]
[1741257363734,87.3767,152.05,152.01,0.14216157]
[1741257363942,33.13770486,152.06,152.01,0.14216157]
[1741257364759,26.56130486,152.07,152.02,26.56130486]
[1741257365057,26.56130486,152.11,152.06,0.14216157]
[1741257365447,26.56130486,152.1,152.06,0.14216157]
[1741257365758,26.56130486,152.07,152.01,0.14216157]
[1741257366064,26.56130486,152.04,152.01,0.14216157]
[1741257366440,26.56130486,152.04,152.03,312.14216157]
[1741257366641,26.56130486,152.05,152.04,0.14216157]
[1741257367251,26.56130486,152.05,152.03,312.0]
[1741257367448,26.56130486,152.04,152.0,0.033]
[1741257367747,26.56130486,152.01,152.0,0.0001]
[1741257368554,107.36130486,152.02,152.0,0.0001]
[1741257368759,113.93960486,152.02,152.0,0.0001]
[1741257369059,26.56130486,152.01,152.0,0.0001]
[1741257369756,113.93960486,152.02,152.0,0.0001]
[1741257369954,26.56130486,152.01,152.0,0.0001]
[1741257370351,26.56130486,152.01,152.0,312.14226157]
[1741257370549,33.13980486,152.01,152.0,312.14226157]
[1741257370749,33.13980486,152.01,152.0,0.0001]
[1741257370949,16.4441,152.03,152.0,0.0001]
[1741257371155,26.56130486,152.02,152.0,0.0001]
[1741257371461,26.56130486,152.03,152.0,0.0001]
[1741257371630,26.56130486,152.01,152.0,0.0001]
[1741257372554,23.24443531,152.01,152.0,0.0001]
[1741257373057,23.24403531,152.02,152.0,0.0001]
[1741257373855,16.66593531,152.02,152.0,0.0001]
[1741257375566,1.549,152.05,152.0,0.0001]
[1741257375567,97.46593531,152.05,152.0,0.0001]
[1741257375853,97.46593531,152.08,152.03,0.14216157]
[1741257376066,104.04153531,152.08,152.03,0.14216157]
[1741257376663,33.20688808,152.08,152.03,0.14216157]
[1741257377169,26.63128808,152.06,152.03,0.14216157]
[1741257377651,26.63128808,152.07,152.03,312.14216157]
[1741257378036,26.63128808,152.05,152.03,312.14216157]
[1741257379226,6.5772,152.04,152.03,312.14216157]
[1741257379439,33.20808808,152.05,152.03,312.14216157]
[1741257379853,33.20808808,152.05,152.03,0.14216157]
[1741257380755,26.63128808,152.04,152.03,0.14216157]
[1741257381360,33.20848808,152.04,152.03,0.14216157]
[1741257381960,49.65148808,152.04,152.0,0.0001]
[1741257382145,26.63128808,152.01,152.0,0.0001]
[1741257383150,33.20978808,152.01,152.0,0.0001]
[1741257383862,59.84107616,152.01,152.0,0.0001]
[1741257384163,60.26756087,152.01,152.0,0.0001]
[1741257384464,128.25590973,152.01,151.96,0.033]
[1741257384667,26.63128808,151.97,151.96,0.033]
[1741257385335,33.49581122,151.97,151.95,0.033]
[1741257385561,26.63128808,151.96,151.95,0.033]
[1741257386768,16.4458,152.02,151.95,0.033]
[1741257386936,26.63128808,151.98,151.95,0.033]
[1741257387351,26.63128808,151.96,151.95,0.033]
[1741257387546,33.21188808,151.96,151.95,0.033]
[1741257387754,26.63128808,151.96,151.95,0.033]
[1741257388069,33.21188808,151.96,151.95,0.033]
[1741257388454,26.63128808,151.96,151.95,0.033]
[1741257388852,26.63128808,151.97,151.95,0.033]
[1741257389539,26.63128808,151.96,151.95,0.033]
[1741257390839,80.8,151.99,151.95,0.033]
[1741257391039,107.43128808,151.99,151.95,0.033]
[1741257391239,26.63128808,151.98,151.95,0.033]
[1741257391460,26.63128808,151.97,151.95,0.033]
[1741257391663,6.5803,151.97,151.95,0.033]
[1741257391843,26.63128808,151.96,151.95,0.033]
[1741257392768,27.05777279,151.96,151.94,0.0001]
[1741257392954,107.43128808,151.95,151.94,0.0001]
[1741257393261,26.63128808,151.95,151.94,0.0001]
[1741257393651,33.21238808,151.95,151.94,0.0001]
[1741257394745,33.49671122,151.95,151.94,0.0001]
[1741257395269,78.77764816,151.95,151.94,0.0001]
[1741257395475,78.77764816,151.95,151.88,0.033]
[1741257395476,26.63128808,151.89,151.88,0.033]
[1741257395667,33.21498808,151.89,151.88,0.033]
[1741257395857,26.63128808,151.91,151.88,0.033]
[1741257396059,26.63128808,151.9,151.88,0.033]
[1741257396356,26.63128808,151.89,151.88,0.033]
[1741257396567,6.5811,151.95,151.89,0.14216157]
[1741257396761,33.21198808,151.96,151.91,0.14216157]
[1741257397080,6.5807,151.96,151.91,26.77344965]
[1741257397266,6.5803,151.97,151.91,26.77344965]
[1741257397567,26.63128808,151.99,151.94,0.14216157]
[1741257397980,33.21008808,152.01,151.96,0.14216157]
[1741257398472,26.63128808,152.0,151.95,0.14216157]
[1741257398840,26.63128808,152.01,151.95,26.77344965]
[1741257399046,26.63128808,152.02,151.97,0.14216157]
[1741257399241,26.63128808,152.03,151.97,26.77344965]
[1741257399474,26.63128808,152.02,151.97,26.77344965]
[1741257399686,33.20978808,152.01,151.97,0.14216157]
[1741257399973,26.63128808,151.98,151.92,6.5753]
[1741257400150,26.63128808,151.95,151.92,318.5753]
[1741257400354,26.63128808,151.98,151.93,0.14216157]
[1741257401174,26.63128808,151.95,151.92,6.5753]
[1741257401376,26.63128808,151.94,151.89,26.63128808]
[1741257401547,26.63128808,151.95,151.89,26.63128808]
[1741257401743,6.5815,151.94,151.89,26.63128808]
[1741257402149,33.21278808,151.94,151.88,32.84998808]
[1741257402347,6.5815,151.94,151.89,26.63128808]
[1741257402669,6.5815,151.94,151.9,0.14216157]
[1741257402876,26.63128808,151.96,151.9,0.14216157]
[1741257403081,33.21148808,151.97,151.92,0.14216157]
[1741257403246,26.63128808,151.96,151.92,0.14216157]
[1741257403458,26.63128808,151.95,151.92,0.14216157]
[1741257403671,26.63128808,151.95,151.93,312.0]
[1741257404186,26.63128808,151.99,151.94,0.14216157]
[1741257404666,26.63128808,151.98,151.92,20.14216157]
[1741257404866,23.0281,151.99,151.92,0.14216157]
[1741257405083,26.63128808,151.96,151.92,0.14216157]
[1741257405269,26.63128808,151.96,151.91,0.14216157]
[1741257405683,26.63128808,151.96,151.89,99.94964886]
[1741257405684,26.63128808,151.94,151.89,26.63128808]
[1741257405877,26.63128808,151.95,151.9,0.14216157]
[1741257406188,26.63128808,151.96,151.9,0.14216157]
[1741257406573,6.5811,151.95,151.9,33.35664965]
[1741257406899,33.21208808,151.96,151.9,33.35664965]
[1741257407099,33.21208808,151.96,151.9,26.77344965]
[1741257407271,26.77344965,152.0,151.93,26.77344965]
[1741257407272,26.63128808,152.0,151.93,26.77344965]
[1741257407591,80.8,152.01,151.96,26.77344965]
[1741257408088,107.43128808,152.01,151.96,0.14216157]
[1741257408263,80.8,152.01,151.96,26.77344965]
[1741257408587,80.8,152.01,151.98,0.14216157]
[1741257408792,0.03,152.02,151.98,0.14216157]
[1741257408971,6.6081,152.02,151.98,0.14216157]
[1741257409173,26.66128808,152.02,151.97,0.14216157]
[1741257409377,0.03,152.02,151.97,26.77344965]
[1741257409591,0.03,152.02,151.97,33.35354965]
[1741257410276,0.03,152.02,151.99,26.63128808]
[1741257410484,0.03,152.02,152.01,0.14216157]
[1741257410663,0.03,152.02,152.01,312.14216157]
[1741257411172,26.66128808,152.02,152.01,312.14216157]
[1741257411887,0.03,152.02,152.01,312.14216157]
[1741257413980,0.03,152.02,151.98,0.14216157]
[1741257414184,0.03,152.02,151.98,26.77344965]
[1741257414374,0.03,152.02,152.0,0.14216157]
[1741257414688,0.03,152.02,152.01,26.77344965]
[1741257415375,0.03,152.02,152.01,0.14216157]
[1741257415569,0.03,152.02,152.01,26.77344965]
[1741257415886,0.03,152.02,152.01,0.14216157]
[1741257416390,0.03,152.02,152.01,126.72309851]
[1741257416689,0.03,152.02,152.01,134.91939851]
[1741257417188,0.03,152.02,152.01,446.91939851]
[1741257417688,0.03,152.07,152.05,20.14216157]
[1741257417990,0.03,152.07,152.06,45.42309851]
[1741257418207,0.03,152.07,152.06,126.72309851]
[1741257418491,0.03,152.07,152.06,100.09181043]
[1741257418673,0.03,152.07,152.06,116.72029853]
[1741257419285,0.03,152.07,152.06,117.14678324]
[1741257419583,0.03,152.07,152.06,251.64678324]
[1741257419780,0.03,152.07,152.06,251.22029853]
[1741257420163,0.03,152.07,152.06,232.57064967]
[1741257420362,0.03,152.07,152.06,232.4284881]
[1741257420598,0.03,152.07,152.06,242.41787756]
[1741257420758,0.03,152.07,152.06,573.06752642]
[1741257420962,0.03,152.07,152.06,573.20968799]
[1741257421493,0.03,152.07,152.06,554.56003913]
[1741257423899,0.03,152.07,152.06,573.20968799]
[1741257424273,0.03,152.07,152.06,554.56003913]
[1741257424790,0.03,152.07,152.06,579.78598799]
[1741257424984,0.03,152.07,152.06,445.28598799]
[1741257425291,0.03,152.07,152.06,438.70968799]
[1741257425593,0.03,152.07,152.06,445.28598799]
[1741257425892,0.03,152.07,152.06,445.7124727]
[1741257426096,6.5724,152.15,152.1,0.14216157]
[1741257426299,6.572,152.16,152.13,0.14216157]
[1741257427099,6.572,152.16,152.11,26.76003913]
[1741257427881,23.002,152.16,152.11,26.76003913]
[1741257428087,6.572,152.16,152.13,0.14216157]
[1741257428290,0.03,152.18,152.16,18.79181043]
[1741257428471,0.03,152.18,152.17,45.8361727]
[1741257428671,0.03,152.18,152.17,52.3587727]
[1741257428893,0.03,152.18,152.17,63.38901709]
[1741257429066,0.03,152.18,152.17,52.3587727]
[1741257429401,0.03,152.18,152.17,580.1587727]
[1741257429697,0.03,152.21,152.2,20.0]
[1741257429905,0.03,152.21,152.2,262.56003913]
[1741257430089,0.03,152.21,152.2,281.20968799]
[1741257430303,0.03,152.21,152.2,0.14216157]
[1741257430893,0.03,152.21,152.2,26.76003913]
[1741257432201,0.03,152.21,152.2,261.20968799]
[1741257432703,0.03,152.21,152.2,268.2064727]
[1741257432996,0.03,152.23,152.22,92.45405026]
[1741257433170,0.03,152.25,152.24,72.45405026]
[1741257433369,0.03,152.25,152.24,261.20968799]
[1741257433593,0.03,152.25,152.24,242.56003913]
[1741257434089,0.03,152.25,152.24,261.20968799]
[1741257434400,0.03,152.25,152.24,261.35184956]
[1741257434599,0.03,152.25,152.24,261.6361727]
[1741257434904,0.03,152.32,152.25,0.14216157]
[1741257435108,26.64787756,152.32,152.27,0.14216157]
[1741257435401,0.03,152.32,152.27,26.76003913]
[1741257435611,26.61787756,152.3,152.27,0.14216157]
[1741257435898,26.61787756,152.3,152.26,0.14216157]
[1741257436399,6.5664,152.29,152.26,312.14216157]
[1741257436602,6.5664,152.29,152.26,0.14216157]
[1741257436803,6.5664,152.29,152.26,26.76003913]
[1741257437124,0.03,152.32,152.29,0.14216157]
[1741257437309,0.03,152.32,152.31,0.14216157]
[1741257437905,6.5951,152.32,152.3,0.14216157]
[1741257438279,0.03,152.32,152.3,0.14216157]
[1741257438910,0.03,152.32,152.3,26.76003913]
[1741257439389,0.03,152.32,152.3,0.14216157]
[1741257439591,26.61787756,152.31,152.25,107.91787756]
[1741257439795,26.61787756,152.3,152.25,81.3]
[1741257440002,26.61787756,152.29,152.25,81.3]
[1741257440378,6.5668,152.28,152.26,0.14216157]
[1741257441818,49.60177756,152.28,152.22,114.23787756]
[1741257441992,49.60177756,152.28,152.23,0.14216157]
[1741257442392,49.60177756,152.28,152.22,107.91787756]
[1741257442620,49.60177756,152.28,152.23,312.14216157]
[1741257442826,26.61787756,152.26,152.23,312.0]
[1741257443001,26.61787756,152.25,152.22,81.3]
[1741257443200,26.61787756,152.25,152.19,242.41787756]
[1741257443387,26.61787756,152.25,152.2,26.61787756]
[1741257443584,26.61787756,152.24,152.19,107.91787756]
[1741257443793,6.5668,152.28,152.23,26.76003913]
[1741257444099,6.5668,152.28,152.25,0.14216157]
[1741257444693,6.5664,152.29,152.25,0.14216157]
[1741257444997,0.03,152.32,152.28,26.76003913]
[1741257445200,0.03,152.32,152.31,0.14216157]
[1741257445616,0.03,152.32,152.31,26.76003913]
[1741257445797,0.03,152.32,152.31,114.62553913]
[1741257445999,0.03,152.32,152.31,420.06003913]
[1741257447810,0.03,152.32,152.27,81.3]
[1741257448015,0.03,152.32,152.27,107.91787756]
[1741257448514,0.03,152.32,152.28,26.61787756]
[1741257448822,0.03,152.32,152.31,0.14216157]
[1741257450605,0.03,152.32,152.31,26.76003913]
[1741257450810,0.03,152.32,152.31,338.76003913]
[1741257451197,0.03,152.32,152.31,312.14216157]
[1741257452427,0.03,152.32,152.31,0.14216157]
[1741257452625,26.64787756,152.32,152.29,81.3]
[1741257452802,26.61787756,152.3,152.29,81.3]
[1741257453000,26.61787756,152.3,152.29,81.44216157]
[1741257453404,26.61787756,152.3,152.24,81.3]
[1741257453603,0.03,152.32,152.29,26.61787756]
[1741257453817,0.03,152.32,152.3,0.14216157]
[1741257455215,26.61787756,152.31,152.25,107.91787756]
[1741257455421,26.61787756,152.29,152.25,393.3]
[1741257455826,26.61787756,152.31,152.25,419.91787756]
[1741257456201,0.03,152.32,152.31,0.14216157]